fUSD/lending_fUSD_20250814
["ID","MTS","AMOUNT","RATE_DAILY","PERIOD"]
[379134107,1755154167892,-9522.64061478,0.00040517,15]
[379134108,1755154167916,-228.08017938,0.00040517,16]
[379134109,1755154167943,-18691.2549,0.00040517,120]
[379134110,1755154167968,-5000.0,0.00040544,2]
[379134111,1755154167995,-1044.0,0.00040578,120]
[379134112,1755154168020,-369.0,0.000406,5]
[379134113,1755154168048,-444.20241486,0.00040616,31]
[379134114,1755154168075,-810.0,0.00040639,2]
[379134115,1755154168100,-3369.0,0.00040639,2]
[379134116,1755154168126,-388.52233457,0.00040644,30]
[379134117,1755154168154,-150.0,0.00040644,2]
[379134118,1755154168180,-272.22938683,0.00040658,120]
[379134119,1755154168208,-1044.0,0.00040678,120]
[379134120,1755154168234,-1825.11,0.000407,2]
[379134121,1755154168262,-168.0,0.00040717,7]
[379134122,1755154168289,-413.49840721,0.00040746,2]
[379134123,1755154168319,-1044.0,0.00040778,120]
[379134124,1755154168346,-350.0,0.00040796,2]
[379134125,1755154168740,-455.43831183,0.000408,60]
[379134126,1755154168769,-168.0,0.00040826,7]
[379134127,1755154168800,-1044.0,0.00040878,120]
[379134128,1755154168830,-1044.0,0.00040978,120]
[379134129,1755154168855,-156.45,0.0004099,2]
[379134130,1755154168881,-150.0,0.00040998,2]
[379134131,1755154168907,-15601.05392637,0.00041,7]
[379134132,1755154168932,-27283.33688187,0.00041,7]
[379134133,1755154168961,-1044.0,0.00041078,120]
[379134134,1755154168991,-150.0,0.00041095,120]
[379134135,1755154169017,-154.72,0.00041096,2]
[379134136,1755154169043,-2500.0,0.00041096,2]
[379134137,1755154169073,-500.0,0.00041096,31]
[379134138,1755154169099,-500.0,0.00041096,31]
[379134139,1755154169125,-500.0,0.00041096,31]
[379134140,1755154169150,-282.82985386,0.00041096,31]
[379134141,1755154169177,-1044.0,0.00041178,120]
[379134142,1755154169204,-1044.0,0.00041278,120]
[379134143,1755154169229,-359.77,0.00041317,2]
[379134144,1755154169256,-1044.0,0.00041378,120]
[379134145,1755154169284,-1044.0,0.00041478,120]
[379134146,1755154169311,-168.0,0.00041547,2]
[379134147,1755154169339,-1044.0,0.00041578,120]
[379134148,1755154169365,-156.82144561,0.00041654,120]
[379134149,1755154169391,-1044.0,0.00041678,120]
[379134150,1755154169416,-237.0,0.0004175,2]
[379134151,1755154169443,-1044.0,0.00041778,120]
[379134152,1755154169470,-1044.0,0.00041878,120]
[379134153,1755154169496,-9522.64061478,0.00041907,15]
[379134154,1755154169524,-1044.0,0.00041978,120]
[379134155,1755154169552,-168.0,0.00041981,2]
[379134156,1755154169578,-1000.0,0.00042,120]
[379134157,1755154169608,-168.0,0.00042054,2]
[379134158,1755154169635,-1044.0,0.00042078,120]
[379134159,1755154169663,-168.0,0.00042145,2]
[379134160,1755154169691,-1044.0,0.00042178,120]
[379134161,1755154169723,-2767.89878938,0.00042194,15]
[379134162,1755154169769,-253.0,0.00042244,2]
[379134163,1755154169810,-1044.0,0.00042278,120]
[379134164,1755154169842,-254.0,0.00042321,2]
[379134165,1755154169870,-150.0,0.00042368,120]
[379134166,1755154169898,-500.0,0.0004237,10]
[379134167,1755154169927,-1044.0,0.00042378,120]
[379134168,1755154169956,-7493.30778569,0.00042454,3]
[379134169,1755154169988,-150.0,0.00042465,120]
[379134170,1755154170019,-1044.0,0.00042478,120]
[379134171,1755154170046,-1000.0,0.000425,120]
[379134172,1755154170073,-2500.0,0.00042538,2]
[379134173,1755154170102,-1044.0,0.00042578,120]
[379134174,1755154170129,-151.0,0.00042676,2]
[379134175,1755154170159,-1044.0,0.00042678,120]
[379134176,1755154170187,-1044.0,0.00042778,120]
[379134177,1755154170214,-156.82144561,0.00042791,120]
[379134178,1755154170241,-167.57030116,0.00042826,28]
[379134179,1755154170269,-1044.0,0.00042878,120]
[379134180,1755154170295,-500.77975755,0.00042918,10]
[379134181,1755154170328,-7493.30778569,0.00042948,3]
[379134182,1755154170358,-1044.0,0.00042978,120]
[379134183,1755154170385,-214.0,0.00043,7]
[379134184,1755154170411,-1300.39957063,0.00043,120]
[379134185,1755154170437,-161.88129384,0.00043,120]
[379134186,1755154170463,-192.64169736,0.00043,120]
[379134187,1755154170488,-173.81207706,0.00043,120]
[379134188,1755154170514,-1000.0,0.00043,120]
[379134189,1755154170541,-7493.30778569,0.00043068,3]
[379134190,1755154170571,-1044.0,0.00043078,120]
[379134191,1755154170600,-1044.0,0.00043178,120]
[379134192,1755154170628,-1044.0,0.00043278,120]
[379134193,1755154170654,-359.77,0.00043285,2]
[379134194,1755154170681,-245.5,0.00043357,120]
[379134195,1755154170710,-1044.0,0.00043378,120]
[379134196,1755154170740,-1044.0,0.00043478,120]
[379134197,1755154170767,-1000.0,0.000435,120]
[379134198,1755154170795,-1000.0,0.00043504,2]
[379134199,1755154170830,-1044.0,0.00043578,120]
[379134200,1755154170857,-1747.479,0.00043639,2]
[379134201,1755154170884,-512.0,0.00043657,20]
[379134202,1755154170916,-1044.0,0.00043678,120]
[379134203,1755154170942,-150.0,0.00043738,120]
[379134204,1755154170971,-1044.0,0.00043778,120]
[379134205,1755154170998,-150.0,0.00043835,120]
[379134206,1755154171031,-1044.0,0.00043878,120]
[379134207,1755154171059,-7493.30778569,0.00043894,3]
[379134208,1755154171087,-7493.30778569,0.00043904,3]
[379134209,1755154171115,-156.82144561,0.00043928,120]
[379134210,1755154171142,-285.8,0.00043946,120]
[379134211,1755154171170,-7493.30778569,0.0004397,3]
[379134212,1755154171198,-1044.0,0.00043978,120]
[379134213,1755154171225,-2500.0,0.0004398,2]
[379134214,1755154171255,-7493.30778569,0.0004398,3]
[379134215,1755154171282,-1707.0357988,0.00044,120]
[379134216,1755154171309,-345.04979248,0.00044,120]
[379134217,1755154171335,-1000.0,0.00044,120]
[379134218,1755154171364,-1044.0,0.00044078,120]
[379134219,1755154171391,-2000.0,0.000441,2]
[379134220,1755154171421,-1044.0,0.00044178,120]
[379134221,1755154171452,-237.0,0.0004423,30]
[379134222,1755154171482,-1044.0,0.00044278,120]
[379134223,1755154171509,-2767.89878938,0.00044361,15]
[379134224,1755154171537,-1044.0,0.00044378,120]
[379134225,1755154171565,-7493.30778569,0.0004439,3]
[379134226,1755154171590,-2790.21340994,0.000444,120]
[379134227,1755154171618,-1044.0,0.00044478,120]
[379134228,1755154171645,-1000.0,0.000445,120]
[379134229,1755154171671,-4000.0,0.00044514,8]
[379134230,1755154171698,-7493.30778569,0.00044548,3]
[379134231,1755154172116,-1044.0,0.00044578,120]
[379134232,1755154172141,-1000.0,0.00044599,2]
[379134233,1755154172166,-500.0,0.00044603,2]
[379134234,1755154172193,-1044.0,0.00044678,120]
[379134235,1755154172217,-195.39038536,0.00044709,2]
[379134236,1755154172249,-1044.0,0.00044778,120]
[379134237,1755154172275,-162.0,0.000448,120]
[379134238,1755154172302,-7493.30778569,0.00044862,3]
[379134239,1755154172327,-1085.0,0.00044872,30]
[379134240,1755154172355,-1044.5659,0.00044878,120]
[379134241,1755154172380,-1047.68856214,0.00044979,8]
[379134242,1755154172408,-14986.6155714,0.0004498,3]
[379134243,1755154172437,-14986.6155714,0.0004499,3]
[379134244,1755154172464,-173.4,0.00044991,30]
[379134245,1755154172490,-360.13,0.00044991,30]
[379134246,1755154172516,-150.0,0.00044991,30]
[379134247,1755154172542,-158.588,0.00045,120]
[379134248,1755154172570,-28277.65446063,0.00045,10]
[379134249,1755154172596,-784.0,0.00045,120]
[379134250,1755154172621,-1000.0,0.00045,120]
[379134251,1755154172982,228.08017938,0.00043208,19]
[379134252,1755154173058,160.0,0.00042948,3]
[379134253,1755154173223,160.0,0.00040617,7]
[379134254,1755154174243,9522.64061478,0.00043297,15]
[379134255,1755154174289,1173.25639095,0.000249,2]
[379134256,1755154174417,1173.25639077,0.00027827,8]
[379134257,1755154174481,1173.25639077,0.00030754,14]
[379134258,1755154174623,1173.25639077,0.00033682,21]
[379134259,1755154174663,1173.25639077,0.00036609,27]
[379134260,1755154174715,1173.25639077,0.00039536,33]
[379134261,1755154174754,1173.25639077,0.00042463,39]
[379134262,1755154175836,150.99,0.00041547,2]
[379134263,1755154176660,261.48158558,0.00044932,120]
[379134264,1755154176739,9522.64061478,0.00044686,15]
[379134265,1755154178196,10184.6617128,0.00043,120]
[379134266,1755154179808,211.86673127,0.00040074,2]
[379134267,1755154185587,151.0,0.00034393,2]
[379134268,1755154185635,152.17,0.00034393,2]
[379134269,1755154185731,262.82,0.00034393,2]
[379134272,1755154193671,589.93,0.00040617,30]
[379134273,1755154201310,215.68844194,0.00040579,2]
[379134274,1755154201411,475.0,0.00040616,5]
[379134275,1755154202028,151.0,0.0003438,2]
[379134279,1755154203492,300.0,0.00044678,120]
[379134281,1755154203574,300.0,0.00040617,120]
[379134282,1755154203654,300.0,0.00040617,120]
[379134283,1755154204966,250.0,0.00044678,120]
[379134284,1755154206645,211.86673127,0.00042948,3]
[379134285,1755154207306,167.4536677,0.00040517,15]
[379134286,1755154208047,611.99,0.00040617,30]
[379134287,1755154208180,151.0,0.00045,120]
[379134288,1755154208426,500.0,0.00040673,5]
[379134289,1755154211592,520.04693262,0.00045,120]
[379134290,1755154211635,162.7823751,0.00040517,2]
[379134292,1755154216473,163.98,0.00040607,2]
[379134293,1755154216713,163.98,0.00040607,2]
[379134294,1755154218637,151.0,0.0003438,2]
[379134295,1755154221503,151.0,0.00045,90]
[379134296,1755154221645,2308.0031926,0.00040028,7]
[379134297,1755154222254,601.52,0.00040617,30]
[379134366,1755154232569,-367.08179935,0.00040517,2]
[379134367,1755154232581,-507.78299981,0.00040517,2]
[379134368,1755154232593,-125.13520084,0.00040517,2]
[379134369,1755154232602,-4431.72957637,0.00040617,60]
[379134370,1755154232612,-1554.5368022,0.00040617,30]
[379134371,1755154233050,-0.97874549,0.00040617,30]
[379134372,1755154233091,-70054.69979305,0.00040617,30]
[379134373,1755154233102,-131880.18838162,0.00040617,30]
[379134374,1755154233112,-8054.77981313,0.00040617,7]
[379134375,1755154233122,-3769.57820664,0.00040617,7]
[379134376,1755154233132,-1142.27458623,0.00040617,2]
[379134377,1755154233143,-25787.56434273,0.00040617,7]
[379134378,1755154233153,-84567.27407072,0.00040617,7]
[379134379,1755154233163,-6756.93850984,0.00040617,7]
[379134380,1755154233173,-4943.61099691,0.00040617,60]
[379134381,1755154233193,-35480.45128721,0.00040617,30]
[379134382,1755154233232,198.09220598,0.00041096,31]
[379134383,1755154233326,-1900.80211902,0.00040617,30]
[379134384,1755154233339,-39270.16722279,0.00040617,30]
[379134934,1755154243609,-151.0,0.00034144,2]
[379134937,1755154243619,-377908.57936998,0.00040617,30]
[379134938,1755154243628,-12945.06872909,0.00040617,60]
[379134940,1755154243638,-1231.77922295,0.00040617,2]
[379134942,1755154243647,-9848.88782074,0.00040617,120]
[379134944,1755154243656,-1060.0,0.00040617,120]
[379134946,1755154243666,-5000.0,0.00040617,120]
[379134948,1755154243676,-560.9,0.00040617,120]
[379134950,1755154243685,-604.38,0.00040617,30]
[379134952,1755154243695,-1642.6,0.000407,2]
[379134954,1755154243704,-156.82144561,0.00045065,120]
[379134956,1755154243714,-150.0,0.00045107,120]
[379134958,1755154243723,-150.0,0.00045205,120]
[379134961,1755154243735,-359.77,0.00045252,2]
[379134963,1755154243746,-163.66,0.00045268,120]
[379134965,1755154243758,-3726.0,0.00045309,2]
[379134966,1755154243767,-1173.25639077,0.00045391,46]
[379134967,1755154243776,-7493.30778569,0.00045402,3]
[379134968,1755154243786,-2500.0,0.00045422,2]
[379134969,1755154243796,-7493.30778569,0.00045431,3]
[379134970,1755154243805,-1000.0,0.00045625,7]
[379134971,1755154243815,-228.08017938,0.00045899,23]
[379134972,1755154243825,-7493.30778569,0.0004596,3]
[379134973,1755154243835,-14986.6155714,0.0004597,3]
[379134974,1755154243845,-29973.2311428,0.0004598,3]
[379134975,1755154243854,-22479.9233571,0.0004599,3]
[379134976,1755154243864,-50000.0,0.00046,10]
[379134977,1755154243875,-1014.0,0.00046,120]
[379134978,1755154243886,-1047.94,0.00046027,120]
[379134979,1755154243897,-9522.64061478,0.00046076,15]
[379134980,1755154243907,-1047.94,0.00046127,120]
[379134981,1755154243917,-776.0,0.000462,30]
[379134983,1755154243927,-156.82144561,0.00046202,120]
[379134984,1755154243936,-1047.94,0.00046227,120]
[379134986,1755154243946,-5304.70183265,0.00046317,3]
[379135076,1755154244796,-670.0,0.000411,2]
[379135078,1755154244805,-1034.16855802,0.00046317,3]
[379135081,1755154244816,-1154.43739502,0.00046317,3]
[379135083,1755154244825,-1047.94,0.00046327,120]
[379135085,1755154244836,-152.0,0.00046411,3]
[379135087,1755154244845,-1014.74548435,0.00046427,120]
[379135211,1755154246218,-33.19451565,0.00046427,120]
[379135213,1755154246228,-954.85775651,0.00046527,120]
[379135215,1755154246243,-93.08224349,0.00046527,120]
[379135217,1755154246252,-150.0,0.00046575,120]
[379135219,1755154246263,-183.87172437,0.00046576,120]
[379135221,1755154246272,-670.0,0.000466,2]
[379135223,1755154246281,-7350.19724662,0.00046606,3]
[379135227,1755154246309,-143.11053907,0.00046606,3]
[379135229,1755154246318,-292.07234833,0.00046627,120]
[379135231,1755154246329,-755.86765167,0.00046627,120]
[379135233,1755154246339,-331.68,0.00046648,30]
[379135235,1755154246348,-237.0,0.000467,30]
[379135237,1755154246357,-1047.94,0.00046727,120]
[379135239,1755154246367,-157.77720221,0.00046795,30]
[379135241,1755154246377,-1047.94,0.00046827,120]
[379135243,1755154246386,-2500.0,0.00046864,2]
[379135245,1755154246395,-7329.75602062,0.0004687,3]
[379135251,1755154246463,-163.55176507,0.0004687,3]
[379135252,1755154246473,-3106.44822493,0.0004687,3]
[379135253,1755154246485,-2485.19159661,0.0004687,3]
[379135272,1755154246651,-12.57049263,0.0004687,3]
[379135377,1755154247651,-2104.608456,0.0004687,3]
[379135379,1755154247663,-2811.50290503,0.0004687,3]
[379135382,1755154247674,-3361.05061133,0.0004688,3]
[379135399,1755154247830,-1.30502025,0.0004688,3]
[379135415,1755154247991,-57.70191996,0.0004688,3]
[379135417,1755154248004,-1064.94565201,0.0004688,3]
[379135419,1755154248015,-2397.9897025,0.0004688,3]
[379135422,1755154248027,-610.31487964,0.0004688,3]
[379135424,1755154248036,-3523.48512036,0.0004689,3]
[379135426,1755154248052,-3969.82266533,0.0004689,3]
[379135428,1755154248062,-10520.3216752,0.0004689,3]
[379135430,1755154248073,-15377.95126335,0.000469,2]
[379135432,1755154248082,-2000.0,0.000469,2]
[379135434,1755154248092,-1047.94,0.00046927,120]
[379135436,1755154248104,-512.0,0.00046961,23]
[379135438,1755154248113,-265.4633961,0.00047017,3]
[379135452,1755154248240,-90.26623749,0.00047017,3]
[379136249,1755154322183,300.0,0.00029384,120]
[379136256,1755154333140,-184.0,0.00026712,14]
[379136257,1755154333169,-513.0,0.00027137,2]
[379136258,1755154333197,-150.0,0.00027397,2]
[379136259,1755154333229,-150.0,0.00028767,2]
[379136269,1755154351627,180.9,0.00023089,2]
[379136278,1755154361265,860.38802013,0.000249,2]
[379136279,1755154361359,860.38801989,0.00027827,8]
[379136376,1755154543194,803.02881868,0.000249,2]
[379136377,1755154543311,803.02881856,0.00027827,8]
[379136389,1755154557534,166.7,0.0002897,2]
[379136390,1755154557893,166.7,0.00023986,2]
[379136396,1755154592671,511.327,0.00027137,2]
[379136398,1755154608772,513.0,0.00027137,2]
[379136412,1755154720096,551.00006,0.00027137,2]
[379136413,1755154735460,749.49356426,0.000249,2]
[379136414,1755154735515,749.49356398,0.00027827,8]
[379136425,1755154855793,302.0,0.0002897,2]
[379136426,1755154855886,302.0,0.00023986,2]
[379136438,1755154879034,155.87,0.00013699,2]
[379136439,1755154879208,155.87,0.00020548,2]
[379136440,1755154879867,155.87,0.00027397,2]
[379136443,1755154915366,699.52732642,0.000249,2]
[379136444,1755154915434,699.52732638,0.00027827,8]
[379136448,1755154933366,514.0,0.00027137,2]
[379136466,1755155092930,652.89217152,0.000249,2]
[379136467,1755155093034,652.89217128,0.00027827,8]
[379136473,1755155156394,251.6,0.0002897,2]
[379136474,1755155156700,251.6,0.00023986,2]
[379136497,1755155251780,514.0,0.00027137,2]
[379136501,1755155280198,609.36602676,0.000249,2]
[379136502,1755155280338,609.36602652,0.00027827,8]
[379136514,1755155324823,508.00003,0.00027137,2]
[379136515,1755155328121,-161.38,0.00030136,4]
[379136516,1755155328150,-609.36602652,0.00030754,14]
[379136517,1755155328181,-609.36602652,0.00033682,21]
[379136518,1755155328209,-251.6,0.00033954,4]
[379136519,1755155328236,-155.87,0.00034247,2]
[379136520,1755155328265,-514.0,0.00034689,10]
[379136527,1755155348314,1305.6787509,0.00035,2]
[379136540,1755155373417,500.0,0.00035,2]
[379136545,1755155385337,1000.0,0.00035,2]
[379136553,1755155409459,1000.0,0.00035,2]
[379136560,1755155420949,1000.0,0.00035,2]
[379136568,1755155428076,1000.0,0.00035,2]
[379136586,1755155431615,-875.246249,0.00036134,2]
[379136588,1755155431624,-160.0,0.00036314,2]
[379136590,1755155431635,-652.0,0.00036324,2]
[379136591,1755155431645,-300.0,0.00036324,2]
[379136593,1755155431654,-3594.227,0.00036325,44]
[379136595,1755155431663,-174.102,0.00036325,44]
[379136596,1755155431672,-13699.22,0.00036325,2]
[379136598,1755155431680,-8120.40164219,0.00036325,2]
[379136599,1755155431703,-1772.83835781,0.00036325,2]
[379136600,1755155431712,-831.25,0.00036325,2]
[379136601,1755155431722,-528.0,0.00036328,3]
[379136602,1755155431731,-150.408,0.00036329,2]
[379136603,1755155431740,-150.066,0.00036329,2]
[379136604,1755155431750,-203.328,0.00036329,2]
[379136605,1755155431759,-565.0,0.00036329,2]
[379136606,1755155431769,-982.0,0.00036329,2]
[379136607,1755155431778,-609.36602652,0.00036609,27]
[379136608,1755155431787,-183.87172437,0.000372,120]
[379136609,1755155431796,-1296.0,0.00037326,2]
[379136610,1755155431806,-598.0,0.00037326,2]
[379136611,1755155431815,-1655.0,0.00037326,2]
[379136612,1755155431825,-903.806,0.00037326,2]
[379136613,1755155431835,-150.99,0.00037326,2]
[379136614,1755155431844,-500.0,0.000374,5]
[379136615,1755155431854,-172.98423825,0.000374,5]
[379136616,1755155431863,-666.0,0.00037669,3]
[379136617,1755155431873,-500.0,0.00037792,5]
[379136618,1755155431885,-194.6629672,0.00037792,5]
[379136619,1755155431895,-629.25423188,0.00037792,5]
[379136620,1755155431905,-500.0,0.00037792,5]
[379136621,1755155431914,-150.84,0.00037811,2]
[379136622,1755155431924,-643.01,0.00037811,2]
[379136623,1755155431934,-161.90884673,0.00037818,5]
[379136624,1755155431946,-500.0,0.00037818,5]
[379136625,1755155431956,-164.67,0.00037875,60]
[379136626,1755155431965,-170.0,0.00037906,7]
[379136627,1755155431975,-164.67,0.00037975,60]
[379136628,1755155431984,-352.25,0.00037978,2]
[379136629,1755155431993,-159.0,0.00038,120]
[379136630,1755155432001,-151.0,0.00038,120]
[379136631,1755155432010,-164.67,0.00038075,60]
[379136632,1755155432019,-266.59,0.00038075,120]
[379136633,1755155432029,-321.29,0.00038122,2]
[379136634,1755155432039,-164.67,0.00038175,60]
[379136636,1755155432048,-150.0,0.00038188,2]
[379136637,1755155432058,-164.67,0.00038275,60]
[379136639,1755155432068,-962.0,0.00038335,7]
[379136641,1755155432078,-1000.0,0.00038356,120]
[379136643,1755155432087,-1000.0,0.00038356,120]
[379136645,1755155432097,-1000.0,0.00038356,120]
[379136647,1755155432106,-1000.0,0.00038356,120]
[379136649,1755155432116,-1000.0,0.00038356,120]
[379136650,1755155432125,-679.7265868,0.00038356,120]
[379136651,1755155432141,-320.2734132,0.00038356,120]
[379136652,1755155432152,-189.79738784,0.00038356,120]
[379136653,1755155432168,-810.20261216,0.00038356,120]
[379136654,1755155432178,-151.83188783,0.00038356,120]
[379136655,1755155432189,-848.16811217,0.00038356,120]
[379136656,1755155432200,-1000.0,0.00038356,120]
[379136657,1755155432210,-1000.0,0.00038356,120]
[379136658,1755155432219,-1000.0,0.00038356,120]
[379136659,1755155432229,-1000.0,0.00038356,120]
[379136660,1755155432240,-1000.0,0.00038356,120]
[379136661,1755155432251,-1000.0,0.00038356,120]
[379136662,1755155432261,-1000.0,0.00038356,120]
[379136663,1755155432270,-1000.0,0.00038356,120]
[379136664,1755155432280,-1000.0,0.00038356,120]
[379136666,1755155432289,-1000.0,0.00038356,120]
[379136667,1755155432299,-1000.0,0.00038356,120]
[379136669,1755155432308,-1000.0,0.00038356,120]
[379136671,1755155432318,-1000.0,0.00038356,120]
[379136673,1755155432327,-209.63780706,0.00038356,120]
[379136674,1755155432337,-216.81909558,0.00038356,2]
[379136676,1755155432346,-458.13769775,0.00038362,2]
[379136678,1755155432356,-211.86673127,0.00038362,2]
[379136680,1755155432366,-500.0,0.00038373,5]
[379136682,1755155432380,-500.0,0.00038373,5]
[379136684,1755155432392,-78.42695696,0.00038375,120]
[379136690,1755155432438,-86.2753152,0.00038375,120]
[379136692,1755155432448,-531.6387966,0.000384,2]
[379136694,1755155432459,-1468.3612034,0.000384,2]
[379136697,1755155432469,-221.26,0.00038459,2]
[379136698,1755155432479,-275.68,0.00038838,2]
[379136701,1755155432488,-140.08565173,0.00038847,2]
[379136809,1755155438011,-299.76779798,0.00038789,2]
[379136810,1755155438023,-4.61717186,0.00038789,2]
[379136811,1755155438032,-151.52,0.00038802,2]
[379136812,1755155438042,-27.91434827,0.00038847,2]
[379136813,1755155438057,-426.34683987,0.00038921,5]
[379136814,1755155438199,-73.65316013,0.00038921,5]
[379136815,1755155438210,-251.6,0.00038938,7]
[379136816,1755155438220,-162.0,0.00038945,2]
[379136817,1755155438230,-962.0,0.00039081,2]
[379136818,1755155438242,-962.0,0.00039248,120]
[379136819,1755155438252,-79.67139103,0.00039265,2]
[379136820,1755155438574,1000.0,0.00035,2]
[379136821,1755155439614,-565.41338151,0.00038789,2]
[379136822,1755155439624,-882.32860897,0.00039265,2]
[379136823,1755155439634,-182.72418468,0.000393,120]
[379136824,1755155439645,-565.0,0.00039329,2]
[379136826,1755155439655,-980.0,0.00039329,2]
[379136828,1755155439664,-963.0,0.00039399,120]
[379136830,1755155439674,-962.0,0.00039428,2]
[379136832,1755155439684,-609.36602652,0.00039536,33]
[379136834,1755155439694,-168.0,0.00039565,2]
[379136836,1755155439704,-168.0,0.00039659,2]
[379136838,1755155439713,-168.0,0.0003983,2]
[379136840,1755155439722,-352.25,0.00039876,2]
[379136841,1755155439732,-202.1863,0.0004,120]
[379136842,1755155439741,-284.272021,0.00040043,2]
[379136843,1755155439750,-150.0,0.00040062,2]
[379136844,1755155439760,-963.0,0.00040083,2]
[379136845,1755155439770,-150.0,0.00040095,2]
[379136846,1755155439780,-150.0,0.00040112,2]
[379136847,1755155439789,-150.0,0.00040215,2]
[379136848,1755155439799,-150.0,0.00040223,2]
[379136849,1755155439808,-150.0,0.00040232,2]
[379136850,1755155439817,-150.0,0.00040239,2]
[379136851,1755155439826,-150.0,0.00040272,2]
[379136852,1755155439836,-1296.0,0.00040326,2]
[379136853,1755155439846,-598.0,0.00040326,2]
[379136854,1755155439856,-1655.0,0.00040326,2]
[379136855,1755155439865,-893.0,0.00040326,2]
[379136856,1755155439875,-150.0,0.00040333,2]
[379136857,1755155439884,-510.85947732,0.00040336,2]
[379136858,1755155439914,-451.14052268,0.00040336,2]
[379136859,1755155439925,-150.0,0.00040357,2]
[379136860,1755155439935,-150.0,0.00040362,2]
[379136861,1755155439945,-150.0,0.00040398,2]
[379136862,1755155440050,-12882.88364243,0.00040412,15]
[379136863,1755155440060,-12882.88364235,0.00040413,15]
[379136864,1755155440069,-12882.88364235,0.00040414,15]
[379136865,1755155440079,-12882.88364235,0.00040415,15]
[379136866,1755155440088,-12882.88364235,0.00040416,15]
[379136867,1755155440098,-153.74564376,0.00040417,15]
[379136868,1755155440107,-12882.88364235,0.00040418,15]
[379136869,1755155440116,-12882.88364235,0.00040419,15]
[379136870,1755155440126,-12882.88364235,0.0004042,15]
[379136871,1755155440135,-12882.88364235,0.00040421,15]
[379136872,1755155440146,-500.0,0.00040421,7]
[379136873,1755155440157,-386.20030081,0.00040422,120]
[379136874,1755155440170,-5004.2976828,0.00040422,15]
[379136875,1755155440180,-12882.88364235,0.00040422,15]
[379136876,1755155440189,-158.49440145,0.00040422,2]
[379136877,1755155440199,-12913.49057061,0.00040422,2]
[379136878,1755155440208,-1953.59331983,0.00040422,2]
[379136879,1755155440217,-386.20030069,0.00040422,120]
[379136880,1755155440228,-386.20030069,0.00040422,120]
[379136881,1755155440238,-5004.29768276,0.00040422,15]
[379136882,1755155440249,-386.20030069,0.00040422,120]
[379136883,1755155440258,-386.20030069,0.00040422,120]
[379136884,1755155440267,-5004.29768276,0.00040422,15]
[379136885,1755155440276,-386.20030069,0.00040422,120]
[379136887,1755155440286,-386.20030069,0.00040422,120]
[379136888,1755155440296,-5004.29768276,0.00040422,15]
[379136889,1755155440305,-386.20030069,0.00040422,120]
[379136890,1755155440315,-386.20030069,0.00040422,120]
[379136891,1755155440324,-5004.29768276,0.00040422,15]
[379136892,1755155440334,-386.20030069,0.00040422,120]
[379136893,1755155440343,-386.20030069,0.00040423,120]
[379136894,1755155440352,-5004.29768276,0.00040423,15]
[379136895,1755155440361,-386.20030069,0.00040423,120]
[379136896,1755155440370,-386.20030069,0.00040423,120]
[379136897,1755155440379,-5004.29768276,0.00040423,15]
[379136898,1755155440391,-386.20030069,0.00040423,120]
[379136899,1755155440400,-2500.0,0.00040423,2]
[379136900,1755155440409,-1000.0,0.00040423,2]
[379136901,1755155440418,-386.20030069,0.00040423,120]
[379136902,1755155440428,-5004.29768276,0.00040423,15]
[379136903,1755155440438,-386.20030069,0.00040423,120]
[379136904,1755155440448,-386.20030069,0.00040423,120]
[379136905,1755155440458,-5004.29768276,0.00040423,15]
[379136906,1755155440467,-386.20030069,0.00040423,120]